[Event "Titled Tuesday Blitz July 18 Late 2023"]
[White "BrandonJiang123456"]
[Black "Melikhov, Evgeny V."]
[BlackFideId "4122046"]
[WhiteElo "2268"]
[BlackElo "2368"]
[Result "0-1"]
[Round "11"]
[TimeControl "180+2"]
[Date "2023.07.18"]
[WhiteClock "0:01:06"]
[BlackClock "0:00:42"]
[Board "92"]

1. e4 {[%clk 0:03:00]}  c5 {[%clk 0:02:59]} 2. Nf3 {[%clk 0:03:00]}  d6 {[%clk 0:02:59]} 3. Bb5+ {[%clk 0:03:01]}  Nd7 {[%clk 0:02:59]} 4. d4 {[%clk 0:03:00]}  cxd4 {[%clk 0:02:58]} 5. Qxd4 {[%clk 0:03:01]}  a6 {[%clk 0:02:57]} 6. Bxd7+ {[%clk 0:03:00]}  Bxd7 {[%clk 0:02:57]} 7. Nc3 {[%clk 0:03:01]}  e5 {[%clk 0:02:56]} 8. Qd3 {[%clk 0:03:02]}  Rc8 {[%clk 0:02:55]} 9. Nd2 {[%clk 0:03:01]}  Be6 {[%clk 0:02:54]} 10. O-O {[%clk 0:02:59]}  Nf6 {[%clk 0:02:52]} 11. Rd1 {[%clk 0:02:59]}  Be7 {[%clk 0:02:48]} 12. Nf1 {[%clk 0:02:58]}  Bc4 {[%clk 0:02:47]} 13. Qf3 {[%clk 0:02:57]}  h6 {[%clk 0:02:41]} 14. Ne3 {[%clk 0:02:57]}  O-O {[%clk 0:02:32]} 15. Nf5 {[%clk 0:02:48]}  Be6 {[%clk 0:02:28]} 16. Nxe7+ {[%clk 0:02:31]}  Qxe7 {[%clk 0:02:26]} 17. h3 {[%clk 0:02:28]}  b5 {[%clk 0:02:22]} 18. Qg3 {[%clk 0:02:26]}  b4 {[%clk 0:02:14]} 19. Nd5 {[%clk 0:02:20]}  Bxd5 {[%clk 0:01:52]} 20. exd5 {[%clk 0:02:18]}  Rxc2 {[%clk 0:01:43]} 21. Bxh6 {[%clk 0:02:15]}  Nh5 {[%clk 0:01:42]} 22. Qb3 {[%clk 0:02:12]}  Rfc8 {[%clk 0:01:37]} 23. Bd2 {[%clk 0:02:09]}  Nf4 {[%clk 0:01:26]} 24. Bxf4 {[%clk 0:02:01]}  exf4 {[%clk 0:01:25]} 25. Qxb4 {[%clk 0:02:01]}  f3 {[%clk 0:01:18]} 26. gxf3 {[%clk 0:01:57]}  Qe2 {[%clk 0:01:12]} 27. Qd4 {[%clk 0:01:52]}  Qxf3 {[%clk 0:01:07]} 28. Re1 {[%clk 0:01:45]}  Qxh3 {[%clk 0:01:03]} 29. Rad1 {[%clk 0:01:30]}  R2c4 {[%clk 0:00:48]} 30. Re8+ {[%clk 0:01:22]}  Kh7 {[%clk 0:00:43]} 31. Qd3+ {[%clk 0:01:06]}  Qxd3 {[%clk 0:00:42]} 0-1


[Site "https://www.chess.com"]

[Event "Titled Tuesday Blitz July 18 Late 2023"]
[White "Cardenas Carbajal, Nilson"]
[Black "Rodriguez Santiago, Jaime"]
[WhiteFideId "8401128"]
[BlackFideId "3100898"]
[WhiteElo "2198"]
[BlackElo "2348"]
[Result "0-1"]
[Round "11"]
[TimeControl "180+2"]
[Date "2023.07.18"]
[WhiteClock "0:00:00"]
[BlackClock "0:00:11"]
[Board "93"]

1. e4 {[%clk 0:03:00]}  c6 {[%clk 0:02:58]} 2. d4 {[%clk 0:03:00]}  d5 {[%clk 0:02:57]} 3. Nd2 {[%clk 0:03:01]}  dxe4 {[%clk 0:02:57]} 4. Nxe4 {[%clk 0:03:02]}  Nf6 {[%clk 0:02:57]} 5. Nxf6+ {[%clk 0:03:01]}  exf6 {[%clk 0:02:58]} 6. c3 {[%clk 0:03:01]}  Bd6 {[%clk 0:02:58]} 7. Bd3 {[%clk 0:03:02]}  O-O {[%clk 0:02:57]} 8. Qc2 {[%clk 0:03:03]}  Re8+ {[%clk 0:02:57]} 9. Ne2 {[%clk 0:03:02]}  h5 {[%clk 0:02:57]} 10. h3 {[%clk 0:03:01]}  h4 {[%clk 0:02:49]} 11. Be3 {[%clk 0:02:54]}  Qc7 {[%clk 0:02:47]} 12. O-O-O {[%clk 0:02:43]}  Be6 {[%clk 0:02:40]} 13. c4 {[%clk 0:02:41]}  Nd7 {[%clk 0:02:34]} 14. c5 {[%clk 0:02:14]}  Bf8 {[%clk 0:02:28]} 15. g3 {[%clk 0:02:14]}  hxg3 {[%clk 0:02:21]} 16. Nxg3 {[%clk 0:02:13]}  Bd5 {[%clk 0:02:06]} 17. Rhg1 {[%clk 0:02:12]}  Bf3 {[%clk 0:01:56]} 18. Be2 {[%clk 0:01:52]}  Bxe2 {[%clk 0:01:43]} 19. Qxe2 {[%clk 0:01:50]}  Re6 {[%clk 0:01:07]} 20. Nf5 {[%clk 0:01:47]}  g6 {[%clk 0:00:55]} 21. Qg4 {[%clk 0:01:11]}  Rae8 {[%clk 0:00:39]} 22. Nh4 {[%clk 0:01:08]}  Re4 {[%clk 0:00:37]} 23. f4 {[%clk 0:00:52]}  Bg7 {[%clk 0:00:14]} 24. Nxg6 {[%clk 0:00:29]}  fxg6 {[%clk 0:00:13]} 25. Qxg6 {[%clk 0:00:27]}  Nf8 {[%clk 0:00:13]} 26. Qxf6 {[%clk 0:00:16]}  Rxe3 {[%clk 0:00:14]} 27. Rg4 {[%clk 0:00:09]}  Qf7 {[%clk 0:00:13]} 28. Qh6 {[%clk 0:00:05]}  Re1 {[%clk 0:00:13]} 29. Qh4 {[%clk 0:00:02]}  Rxd1+ {[%clk 0:00:12]} 30. Kxd1 {[%clk 0:00:03]}  Ng6 {[%clk 0:00:11]} 31. Kc2 {[%clk 0:00:00]}  Nxh4 {[%clk 0:00:11]} 0-1


[Site "https://www.chess.com"]

[Event "Titled Tuesday Blitz July 18 Late 2023"]
[White "Vanek, Tomas"]
[Black "Thiel, Thomas"]
[WhiteFideId "313459"]
[BlackFideId "4615964"]
[WhiteElo "2160"]
[BlackElo "2232"]
[Result "0-1"]
[Round "11"]
[TimeControl "180+2"]
[Date "2023.07.18"]
[WhiteClock "0:00:15"]
[BlackClock "0:02:16"]
[Board "103"]

1. d4 {[%clk 0:03:00]}  d5 {[%clk 0:02:59]} 2. Bf4 {[%clk 0:02:59]}  Nf6 {[%clk 0:02:56]} 3. e3 {[%clk 0:02:59]}  c5 {[%clk 0:02:56]} 4. c3 {[%clk 0:02:58]}  Qb6 {[%clk 0:02:55]} 5. Qb3 {[%clk 0:02:58]}  c4 {[%clk 0:02:55]} 6. Qc2 {[%clk 0:02:58]}  Nc6 {[%clk 0:02:53]} 7. Nd2 {[%clk 0:02:24]}  g6 {[%clk 0:02:52]} 8. f3 {[%clk 0:02:20]}  Bg7 {[%clk 0:02:50]} 9. b3 {[%clk 0:02:18]}  cxb3 {[%clk 0:02:48]} 10. axb3 {[%clk 0:02:18]}  O-O {[%clk 0:02:45]} 11. Bd3 {[%clk 0:02:17]}  e5 {[%clk 0:02:40]} 12. Bg3 {[%clk 0:01:24]}  exd4 {[%clk 0:02:38]} 13. exd4 {[%clk 0:01:24]}  Re8+ {[%clk 0:02:37]} 14. Ne2 {[%clk 0:01:23]}  Bd7 {[%clk 0:02:30]} 15. O-O {[%clk 0:01:20]}  Rac8 {[%clk 0:02:29]} 16. Bf2 {[%clk 0:01:10]}  Nb4 {[%clk 0:02:26]} 17. Qb1 {[%clk 0:01:07]}  Bh6 {[%clk 0:02:20]} 18. Rd1 {[%clk 0:00:32]}  Nxd3 {[%clk 0:02:16]} 19. Qxd3 {[%clk 0:00:15]}  Bf5 {[%clk 0:02:16]} 0-1


[Site "https://www.chess.com"]

[Event "Titled Tuesday Blitz July 18 Late 2023"]
[White "Sarkar, Justin"]
[Black "Tqebuchava, Zurab"]
[WhiteFideId "2010011"]
[BlackFideId "13601113"]
[WhiteElo "2228"]
[BlackElo "2104"]
[Result "1-0"]
[Round "11"]
[TimeControl "180+2"]
[Date "2023.07.18"]
[WhiteClock "0:00:06"]
[BlackClock "0:00:00"]
[Board "104"]

1. e4 {[%clk 0:02:49]}  d6 {[%clk 0:03:00]} 2. c4 {[%clk 0:02:44]}  Nf6 {[%clk 0:03:00]} 3. Nc3 {[%clk 0:02:43]}  c5 {[%clk 0:02:58]} 4. Nge2 {[%clk 0:02:28]}  Nc6 {[%clk 0:02:50]} 5. d4 {[%clk 0:02:25]}  cxd4 {[%clk 0:02:48]} 6. Nxd4 {[%clk 0:02:25]}  g6 {[%clk 0:02:46]} 7. Be2 {[%clk 0:02:21]}  Bg7 {[%clk 0:02:46]} 8. Be3 {[%clk 0:02:20]}  O-O {[%clk 0:02:44]} 9. O-O {[%clk 0:02:18]}  Bd7 {[%clk 0:02:42]} 10. Rc1 {[%clk 0:02:02]}  a6 {[%clk 0:02:37]} 11. f3 {[%clk 0:01:44]}  Rc8 {[%clk 0:02:34]} 12. Qd2 {[%clk 0:01:34]}  Ne5 {[%clk 0:02:24]} 13. b3 {[%clk 0:01:32]}  Kh8 {[%clk 0:02:20]} 14. h3 {[%clk 0:01:31]}  Nc6 {[%clk 0:02:11]} 15. Nc2 {[%clk 0:01:26]}  Nh5 {[%clk 0:02:05]} 16. Kf2 {[%clk 0:00:43]}  Bf6 {[%clk 0:01:48]} 17. g3 {[%clk 0:00:34]}  Be6 {[%clk 0:01:36]} 18. Nd5 {[%clk 0:00:29]}  Bxd5 {[%clk 0:01:31]} 19. cxd5 {[%clk 0:00:27]}  Ne5 {[%clk 0:01:25]} 20. f4 {[%clk 0:00:19]}  Nd7 {[%clk 0:01:18]} 21. Bxh5 {[%clk 0:00:18]}  gxh5 {[%clk 0:01:15]} 22. Bd4 {[%clk 0:00:17]}  Rg8 {[%clk 0:00:58]} 23. Ne3 {[%clk 0:00:14]}  Rxc1 {[%clk 0:00:45]} 24. Rxc1 {[%clk 0:00:14]}  Qf8 {[%clk 0:00:44]} 25. Nf5 {[%clk 0:00:13]}  Nc5 {[%clk 0:00:27]} 26. Bxf6+ {[%clk 0:00:09]}  exf6 {[%clk 0:00:26]} 27. Qd4 {[%clk 0:00:10]}  Rg6 {[%clk 0:00:21]} 28. Nh4 {[%clk 0:00:08]}  Qe7 {[%clk 0:00:15]} 29. Nxg6+ {[%clk 0:00:08]}  hxg6 {[%clk 0:00:15]} 30. Kf3 {[%clk 0:00:07]}  Qd7 {[%clk 0:00:13]} 31. b4 {[%clk 0:00:07]}  Na4 {[%clk 0:00:12]} 32. Qxf6+ {[%clk 0:00:07]}  Kh7 {[%clk 0:00:11]} 33. f5 {[%clk 0:00:07]}  Qb5 {[%clk 0:00:08]} 34. Qxf7+ {[%clk 0:00:06]}  Kh8 {[%clk 0:00:00]} 35. Rc8+ {[%clk 0:00:06]} 1-0


[Site "https://www.chess.com"]

[Event "Titled Tuesday Blitz July 18 Late 2023"]
[White "De Souza, Cristiano Gomes"]
[Black "Piekarski, Atila Balzer"]
[WhiteFideId "2151758"]
[BlackFideId "2119552"]
[WhiteElo "2217"]
[BlackElo "2053"]
[Result "1-0"]
[Round "11"]
[TimeControl "180+2"]
[Date "2023.07.18"]
[WhiteClock "0:00:50"]
[BlackClock "0:00:56"]
[Board "107"]

1. d4 {[%clk 0:03:00]}  Nf6 {[%clk 0:01:38]} 2. c4 {[%clk 0:02:55]}  g6 {[%clk 0:01:38]} 3. Nf3 {[%clk 0:02:53]}  Bg7 {[%clk 0:01:39]} 4. Nc3 {[%clk 0:02:51]}  d6 {[%clk 0:01:40]} 5. e4 {[%clk 0:02:49]}  O-O {[%clk 0:01:40]} 6. Be2 {[%clk 0:02:50]}  e5 {[%clk 0:01:41]} 7. O-O {[%clk 0:02:50]}  Bg4 {[%clk 0:01:40]} 8. Be3 {[%clk 0:02:47]}  a5 {[%clk 0:01:30]} 9. Rc1 {[%clk 0:02:42]}  Na6 {[%clk 0:01:29]} 10. a3 {[%clk 0:02:41]}  Bxf3 {[%clk 0:01:27]} 11. Bxf3 {[%clk 0:02:40]}  exd4 {[%clk 0:01:26]} 12. Bxd4 {[%clk 0:02:39]}  Nc5 {[%clk 0:01:26]} 13. b4 {[%clk 0:02:37]}  axb4 {[%clk 0:01:24]} 14. axb4 {[%clk 0:02:36]}  Ne6 {[%clk 0:01:24]} 15. Be3 {[%clk 0:02:34]}  Nd7 {[%clk 0:01:24]} 16. Be2 {[%clk 0:02:29]}  Ra3 {[%clk 0:01:22]} 17. Qd2 {[%clk 0:02:19]}  Re8 {[%clk 0:01:22]} 18. f3 {[%clk 0:02:13]}  Ne5 {[%clk 0:01:22]} 19. Nd5 {[%clk 0:02:09]}  Nc6 {[%clk 0:01:18]} 20. Bf2 {[%clk 0:01:59]}  Ncd4 {[%clk 0:01:18]} 21. Rfe1 {[%clk 0:01:41]}  Nb3 {[%clk 0:01:17]} 22. Qd3 {[%clk 0:01:32]}  c6 {[%clk 0:01:14]} 23. Rb1 {[%clk 0:01:15]}  Nbd4 {[%clk 0:01:09]} 24. Qxa3 {[%clk 0:01:11]}  cxd5 {[%clk 0:01:07]} 25. cxd5 {[%clk 0:01:09]}  Nc2 {[%clk 0:01:07]} 26. Qa5 {[%clk 0:01:00]}  Nxe1 {[%clk 0:01:02]} 27. dxe6 {[%clk 0:00:57]}  Nc2 {[%clk 0:01:00]} 28. exf7+ {[%clk 0:00:52]}  Kxf7 {[%clk 0:00:56]} 29. Qa2+ {[%clk 0:00:50]} 1-0


[Site "https://www.chess.com"]

[Event "Titled Tuesday Blitz July 18 Late 2023"]
[White "SoyuzTM4"]
[Black "Prohorov, Olexandr"]
[BlackFideId "14105578"]
[WhiteElo "2188"]
[BlackElo "2179"]
[Result "0-1"]
[Round "11"]
[TimeControl "180+2"]
[Date "2023.07.18"]
[WhiteClock "0:00:59"]
[BlackClock "0:01:59"]
[Board "108"]

1. e4 {[%clk 0:03:00]}  c5 {[%clk 0:02:48]} 2. Nf3 {[%clk 0:02:58]}  e6 {[%clk 0:02:48]} 3. d4 {[%clk 0:02:58]}  cxd4 {[%clk 0:02:49]} 4. Nxd4 {[%clk 0:02:57]}  Qb6 {[%clk 0:02:50]} 5. Nb3 {[%clk 0:02:55]}  Nf6 {[%clk 0:02:50]} 6. Nc3 {[%clk 0:02:53]}  Bb4 {[%clk 0:02:50]} 7. Bd3 {[%clk 0:02:52]}  d5 {[%clk 0:02:50]} 8. exd5 {[%clk 0:02:51]}  Nxd5 {[%clk 0:02:50]} 9. Bd2 {[%clk 0:02:50]}  Nxc3 {[%clk 0:02:51]} 10. bxc3 {[%clk 0:02:48]}  Be7 {[%clk 0:02:51]} 11. O-O {[%clk 0:02:47]}  O-O {[%clk 0:02:48]} 12. c4 {[%clk 0:02:36]}  Nd7 {[%clk 0:02:45]} 13. Rb1 {[%clk 0:02:34]}  e5 {[%clk 0:02:34]} 14. Re1 {[%clk 0:02:15]}  Qc7 {[%clk 0:02:26]} 15. Nd4 {[%clk 0:01:59]}  Nc5 {[%clk 0:02:03]} 16. Qh5 {[%clk 0:01:31]}  Nxd3 {[%clk 0:01:59]} 17. cxd3 {[%clk 0:00:59]}  exd4 {[%clk 0:01:59]} 0-1


[Site "https://www.chess.com"]